lending/lending_fUSD_20260211
["ID","MTS","AMOUNT","RATE_DAILY","PERIOD"]
[405089536,1770778240166,-389.0,0.00017344,2]
[405089537,1770778240184,-166.66,0.00017355,2]
[405089538,1770778240213,-166.66,0.00017411,2]
[405089539,1770778240228,-250.0,0.00017612,2]
[405089541,1770778240244,-1791.45433551,0.00017677,2]
[405089542,1770778240258,-193.53373901,0.00017677,2]
[405089543,1770778240273,-261.0,0.00017696,2]
[405089544,1770778240286,-4219.15859654,0.00017782,2]
[405089545,1770778240300,-319.304,0.000178,2]
[405089546,1770778240314,-72403.8968,0.00017804,2]
[405089547,1770778240327,-2500.0,0.00017805,2]
[405089548,1770778240340,-3550.80368764,0.00017805,2]
[405089549,1770778240354,-3550.80368763,0.00017816,2]
[405089550,1770778240369,-3550.80368763,0.00017826,2]
[405089552,1770778240382,-482.42380393,0.00017826,2]
[405089553,1770778240396,-3550.80368763,0.00017837,2]
[405089554,1770778240409,-3550.80368763,0.00017847,2]
[405089555,1770778240423,-3550.80368763,0.00017858,2]
[405089556,1770778240436,-224.40850842,0.00017862,7]
[405089557,1770778240449,-300.0,0.00017867,2]
[405089558,1770778240462,-3550.80368763,0.00017868,2]
[405089559,1770778240476,-6258.30255804,0.00017873,2]
[405089560,1770778240491,-6258.30255797,0.00017876,2]
[405089561,1770778240503,-3550.80368763,0.00017879,2]
[405089562,1770778240515,-6258.30255797,0.00017879,2]
[405089563,1770778240529,-6258.30255797,0.00017882,2]
[405089564,1770778240541,-6258.30255797,0.00017885,2]
[405089565,1770778240559,-6258.30255797,0.00017888,2]
[405089566,1770778240572,-500.0,0.00017889,2]
[405089567,1770778240586,-500.0,0.00017889,2]
[405089568,1770778240599,-172.65144793,0.00017889,2]
[405089569,1770778240612,-3550.80368763,0.00017889,2]
[405089570,1770778240624,-170.31002871,0.0001789,2]
[405089571,1770778240637,-306.25149363,0.0001789,2]
[405089572,1770778240650,-191.55531114,0.0001789,2]
[405089573,1770778240662,-6258.30255797,0.00017891,2]
[405089574,1770778240674,-6258.30255797,0.00017894,2]
[405089575,1770778240686,-6258.30255797,0.00017897,2]
[405089576,1770778240698,-10000.0,0.000179,2]
[405089577,1770778240710,-256.99144195,0.000179,2]
[405089578,1770778240723,-6258.30255797,0.000179,2]
[405089579,1770778240738,-436.90548125,0.000179,2]
[405089580,1770778240750,-3550.80368763,0.000179,2]
[405089581,1770778240761,-202.43935989,0.000179,3]
[405089582,1770778240773,-264.84893935,0.000179,2]
[405089583,1770778240785,-1447.89121956,0.000179,2]
[405089584,1770778240798,-1796.55900439,0.000179,2]
[405089585,1770778240810,-446.0,0.00017901,2]
[405089586,1770778240823,-500.0,0.00017903,2]
[405089587,1770778240835,-42939.34774597,0.00017904,2]
[405089588,1770778240847,-500.0,0.00017904,2]
[405089589,1770778240860,-500.0,0.00017904,2]
[405089590,1770778240873,-493464.620009,0.00017905,2]
[405089591,1770778240885,-188.27841096,0.00017963,2]
[405089592,1770778240897,-500.0,0.00017972,2]
[405089593,1770778240908,-183259.0034477,0.00017973,2]
[405089594,1770778240920,-14952.8935354,0.00017973,2]
[405089595,1770778240932,-24604.8872079,0.00017973,2]
[405089596,1770778240945,-115083.2094311,0.00017973,2]
[405089597,1770778240957,-1095.3493013,0.00017973,2]
[405089598,1770778240969,-225.48317433,0.00017982,2]
[405089599,1770778240981,-166.66,0.00017986,2]
[405089600,1770778240994,-500.0,0.00017999,2]
[405089601,1770778241006,-500.0,0.00017999,2]
[405089602,1770778241019,-500.0,0.00017999,2]
[405089603,1770778241032,-500.0,0.00017999,2]
[405089604,1770778241045,-500.0,0.00017999,2]
[405089605,1770778241058,-500.0,0.00017999,2]
[405089606,1770778241069,-500.0,0.00017999,2]
[405089607,1770778241081,-500.0,0.00017999,2]
[405089608,1770778241092,-500.0,0.00017999,2]
[405089609,1770778241104,-500.0,0.00017999,2]
[405089610,1770778241116,-500.0,0.00017999,2]
[405089611,1770778241128,-500.0,0.00017999,2]
[405089612,1770778241139,-500.0,0.00017999,2]
[405089613,1770778241151,-500.0,0.00017999,2]
[405089614,1770778241162,-500.0,0.00017999,2]
[405089615,1770778241174,-521.59178718,0.00017999,2]
[405089616,1770778241186,-15070.0,0.00018,2]
[405089617,1770778241198,-2182529.78556754,0.00018,2]
[405089628,1770778243496,-1623.47103011,0.00018,2]
[405089629,1770778243521,-301.1,0.00018,2]
[405089630,1770778243544,-8918.3791467,0.00018,2]
[405089631,1770778244383,-4868.0,0.00018,2]
[405089632,1770778244438,-1602.85811707,0.00018,2]
[405089642,1770778245701,-3010.47718168,0.00018,2]
[405089643,1770778245713,-3382.62678761,0.00018,2]
[405089644,1770778245725,-20655.94520131,0.00018,2]
[405089645,1770778245966,-1627.79921956,0.00018,2]
[405089657,1770778298942,151.0,0.0003561,31]
[405089658,1770778327153,230.22851823,0.00035616,30]
[405089659,1770778328261,155.58967527,0.00035616,30]
[405089660,1770778355002,151.0,0.0003561,31]
[405089661,1770778356455,151.0,0.0003561,31]
[405089674,1770778659244,196.74,0.00035616,30]
[405089675,1770778659521,151.0,0.0003561,31]
[405089676,1770778660940,151.0,0.0003561,31]
[405089677,1770778799937,16838.0,0.00035616,30]
[405089700,1770779154953,169.10662077,0.00029951,120]
[405089720,1770779254098,151.0,0.000329,31]
[405089721,1770779255654,193.654246,0.000329,31]
[405089722,1770779311694,163.73,0.000356,40]
[405089723,1770779315025,190.58,0.00035,31]
[405089724,1770779346199,500.0,0.00029999,60]
[405089725,1770779346789,500.0,0.00035609,60]
[405089731,1770779374252,197.866154,0.0002519,30]
[405089732,1770779374945,461.687694,0.00033586,60]
[405089734,1770779417934,1588.210211,0.00025106,30]
[405089735,1770779419294,1323.508509,0.00033474,60]
[405089743,1770779431796,-328.0184482,0.00014183,2]
[405089744,1770779431807,-805.848,0.00014183,2]
[405089745,1770779431849,-775.90810714,0.00014183,2]
[405089746,1770779431903,-475.27428191,0.00014183,2]
[405089747,1770779431916,-821.59373721,0.00014183,2]
[405089748,1770779431962,-1440.45742554,0.00014183,2]
[405089749,1770779431971,-192.99382523,0.00015273,2]
[405089750,1770779431980,-124.87277869,0.00015373,2]
[405089763,1770779437873,-25.12722131,0.00015373,2]
[405089764,1770779437886,-327.85277869,0.00015373,2]
[405089765,1770779437984,-214.5792837,0.00015373,2]
[405089766,1770779437996,-250.0,0.00015601,2]
[405089767,1770779438007,-1058.806807,0.00016737,7]
[405089768,1770779438017,-157.5739093,0.00016891,2]
[405089769,1770779438029,-342.4260907,0.00016891,2]
[405089770,1770779438039,-150.0,0.00016967,2]
[405089771,1770779438049,-503.0,0.00016986,2]
[405089772,1770779438059,-1194.0,0.00017015,2]
[405089773,1770779438068,-300.0,0.00017015,2]
[405089774,1770779438078,-3240.0,0.00017016,2]
[405089775,1770779438087,-4205.24,0.00017208,2]
[405089776,1770779438097,-200.0,0.00017507,2]
[405089777,1770779438107,-1000.0,0.00017577,2]
[405089778,1770779438116,-150.0,0.00017577,14]
[405089779,1770779438126,-1852.42,0.00017618,2]
[405089780,1770779438135,-9999.99,0.00017618,2]
[405089781,1770779438145,-150.99,0.00017618,2]
[405089782,1770779438155,-1785.43463371,0.00017677,2]
[405089783,1770779438164,-150.0,0.00017727,2]
[405089784,1770779438174,-500.0,0.00017727,2]
[405089785,1770779438184,-185.15980753,0.00017727,2]
[405089786,1770779438194,-500.0,0.00017727,2]
[405089787,1770779438203,-500.0,0.00017727,2]
[405089788,1770779438214,-500.0,0.00017727,2]
[405089789,1770779438224,-192.99382523,0.00017728,2]
[405089790,1770779438234,-7166.17,0.00017828,2]
[405089791,1770779438249,-2500.0,0.0001788,2]
[405089792,1770779438259,-4043.99678335,0.0001788,2]
[405089793,1770779438269,-206.829,0.00017899,2]
[405089794,1770779438278,-891.095,0.00017899,2]
[405089795,1770779438290,-693.8516937,0.000179,2]
[405089796,1770779438300,-10000.0,0.000179,2]
[405089797,1770779438310,-205.59315356,0.000179,2]
[405089798,1770779438320,-291.27032084,0.000179,2]
[405089799,1770779438330,-176.56595956,0.000179,2]
[405089800,1770779438340,-202.43935989,0.000179,3]
[405089801,1770779438350,-2458.36836342,0.000179,2]
[405089802,1770779438360,-667.941231,0.000179,2]
[405089803,1770779438370,-965.26081304,0.000179,2]
[405089804,1770779438380,-150.0,0.00017917,2]
[405089805,1770779438390,-194210.857901,0.0001798,2]
[405089806,1770779438400,-4899.4842375,0.0001798,2]
[405089807,1770779438410,-1095.3493014,0.0001798,2]
[405089808,1770779438420,-39291.2737774,0.0001798,2]
[405089809,1770779438430,-5275.360781,0.0001798,2]
[405089810,1770779438440,-14952.8935353,0.0001798,2]
[405089811,1770779438449,-114421.74443087,0.0001798,2]
[405089812,1770779438470,-781.24303754,0.0001798,2]
[405089813,1770779438482,-2889.84169753,0.0001798,2]
[405089815,1770779438494,-2418.07525,0.0001798,2]
[405089817,1770779438506,-2804.94926039,0.0001798,2]
[405089819,1770779438522,-5275.90333579,0.0001798,2]
[405089830,1770779439997,-28523.4316544,0.0001798,2]
[405089831,1770779440157,-556.22311303,0.0001798,2]
[405089832,1770779440170,-96034.87237785,0.0001798,2]
[405089833,1770779440181,-225.48317433,0.00017982,2]
[405089834,1770779440191,-188.27841096,0.0001799,2]
[405089835,1770779440202,-500.0,0.00017999,2]
[405089836,1770779440213,-500.0,0.00017999,2]
[405089837,1770779440224,-500.0,0.00017999,2]
[405089838,1770779440235,-500.0,0.00017999,2]
[405089839,1770779440244,-500.0,0.00017999,2]
[405089840,1770779440256,-500.0,0.00017999,2]
[405089841,1770779440266,-500.0,0.00017999,2]
[405089844,1770779440279,-500.0,0.00017999,2]
[405089846,1770779440289,-500.0,0.00017999,2]
[405089848,1770779440298,-500.0,0.00017999,2]
[405089849,1770779440307,-500.0,0.00017999,2]
[405089851,1770779440317,-500.0,0.00017999,2]
[405089853,1770779440327,-395.00245735,0.00017999,2]
[405089855,1770779440337,-181.1884548,0.00017999,2]
[405089857,1770779440346,-15275.0,0.00018,2]
[405089859,1770779440357,-800137.23424169,0.00018,2]
[405089862,1770779440367,-1627260.08274643,0.00018,2]
[405089864,1770779440379,-412.0,0.00018,2]
[405089987,1770779446126,-423.03999987,0.00018,2]
[405089988,1770779446262,-3780.6792439,0.00018,2]
[405090001,1770779623922,397.052553,0.00026449,30]
[405090002,1770779624984,330.877127,0.00035265,60]
[405090003,1770779656743,-264.701702,0.00017633,7]
[405090004,1770779659006,200.0,0.00035616,30]
[405090005,1770779670590,200.0,0.00035616,30]
[405090008,1770779704664,189.0,0.00029835,120]
[405090009,1770779706013,189.0,0.00031327,120]
[405090013,1770779929171,277.0,0.00035616,30]
[405090014,1770780008079,151.0,0.000329,31]
[405090015,1770780056794,-200.0,0.00016815,2]
[405090016,1770780063177,100000.0,0.00035616,30]
[405090018,1770780098426,151.0,0.00033069,31]
[405090019,1770780153200,151.0,0.00033069,31]
[405090020,1770780194300,100000.0,0.00035616,30]
[405090021,1770780216727,214.45,0.000355,90]
[405090022,1770780225244,169.84,0.00025634,120]
[405090023,1770780248015,157.44,0.00010136,2]
[405090024,1770780248124,157.44,0.00010656,2]
[405090025,1770780248208,157.44,0.00011176,2]
[405090026,1770780248256,157.44,0.00011696,2]
[405090027,1770780313050,-157.44,0.00012215,2]
[405090028,1770780348276,252.873393,0.000345,31]
[405090040,1770780528361,-200.0,0.000162,5]
[405090041,1770780538496,231.61399,0.0002956,30]
[405090061,1770780581971,510.17388612,0.00035616,120]
[405090068,1770780631961,-175.95,0.00012226,2]
[405090072,1770780631971,-252.0,0.00012475,2]
[405090075,1770780631982,-55.65999621,0.00012475,2]
[405090077,1770780632013,-324.47388197,0.00012475,2]
[405090078,1770780632023,-19.6018603,0.00012735,2]
[405090079,1770780632036,-137.8381397,0.00012735,2]
[405090080,1770780632045,-157.44,0.00013255,2]
[405090081,1770780632056,-250.0,0.00013437,2]
[405090082,1770780632066,-250.0,0.00013723,2]
[405090083,1770780632076,-257.15622973,0.00013723,2]
[405090084,1770780632086,-113.18468345,0.00013723,2]
[405090085,1770780632098,-306.72363293,0.00013723,2]
[405090086,1770780632108,-157.44,0.00013775,2]
[405090087,1770780632119,-157.44,0.00014295,2]
[405090088,1770780632128,-157.44,0.00014814,2]
[405090089,1770780632139,-250.0,0.00015,2]
[405090090,1770780632149,-157.44,0.00015334,2]
[405090091,1770780632159,-11310.34,0.00015362,2]
[405090092,1770780632170,-500.0,0.00015373,2]
[405090093,1770780632180,-300.0,0.0001541,2]
[405090094,1770780632190,-9999.99,0.00015411,2]
[405090095,1770780632202,-250.0,0.00015558,2]
[405090096,1770780632212,-157.44,0.00015854,2]
[405090097,1770780632222,-1000.0,0.00015921,2]
[405090098,1770780632233,-6733.1643,0.000161,2]
[405090099,1770780632246,-242.79553417,0.00016199,2]
[405090100,1770780632256,-240525.3,0.000162,5]
[405090101,1770780632266,-157.44,0.00016374,2]
[405090102,1770780632278,-1500.0,0.00016468,2]
[405090104,1770780632289,-1353.0915,0.00016616,2]
[405090106,1770780632298,-239051.7119,0.00016616,2]
[405090107,1770780632308,-2292.17426203,0.00016715,2]
[405090108,1770780632318,-3538.49718537,0.00016715,2]
[405090109,1770780632328,-154.17,0.0001675,2]
[405090110,1770780632338,-2292.17426197,0.00016847,2]
[405090111,1770780632347,-354.0,0.00016858,2]
[405090112,1770780632357,-157.44,0.00016894,2]
[405090113,1770780632366,-2292.17426197,0.00016978,2]
[405090114,1770780632375,-286822.84613694,0.00017,2]
[405090115,1770780632385,-1927.28043664,0.00017016,2]
[405090116,1770780632397,-277.35679052,0.00017089,2]
[405090117,1770780632407,-169.84,0.0001709,2]
[405090118,1770780632417,-2292.17426197,0.0001711,2]
[405090119,1770780632426,-2292.17426197,0.00017242,2]
[405090120,1770780632436,-225.45524246,0.00017306,2]
[405090121,1770780632446,-2292.17426197,0.00017373,2]
[405090122,1770780632456,-2292.17426197,0.00017505,2]
[405090123,1770780632466,-500.0,0.00017551,2]
[405090124,1770780632477,-1000.0,0.00017628,2]
[405090125,1770780632487,-2292.17426197,0.00017637,2]
[405090126,1770780632497,-150.99,0.00017637,2]
[405090127,1770780632506,-360.73581248,0.00017637,2]
[405090128,1770780632516,-2628.62021494,0.0001764,2]
[405090129,1770780632526,-2292.17426197,0.00017768,2]
[405090130,1770780632537,-2500.0,0.00017799,2]
[405090131,1770780632547,-2000.0,0.000178,2]
[405090132,1770780632557,-157.74842074,0.000178,2]
[405090133,1770780632567,-480.67385402,0.00017811,2]
[405090134,1770780632578,-157.74842073,0.0001785,2]
[405090135,1770780632588,-6645.3555,0.000179,2]
[405090136,1770780632597,-712.876,0.000179,2]
[405090137,1770780632607,-164.47452284,0.000179,2]
[405090138,1770780632617,-194.18021388,0.000179,2]
[405090139,1770780632626,-1367.45281848,0.000179,2]
[405090140,1770780632637,-2292.17426197,0.000179,2]
[405090141,1770780632647,-293.57975834,0.000179,2]
[405090142,1770780632657,-157.74842073,0.000179,2]
[405090143,1770780632667,-1868.43440261,0.000179,2]
[405090144,1770780632677,-209.13309471,0.00017986,2]
[405090145,1770780632687,-500.0,0.00017995,2]
[405090146,1770780632697,-504.73417313,0.00017995,2]
[405090147,1770780632706,-276.50172014,0.00017995,2]
[405090148,1770780632716,-500.0,0.00017995,2]
[405090149,1770780632725,-500.0,0.00017995,2]
[405090150,1770780632735,-500.0,0.00017995,2]
[405090151,1770780632745,-500.0,0.00017995,2]
[405090152,1770780632754,-500.0,0.00017995,2]
[405090153,1770780632764,-500.0,0.00017995,2]
[405090154,1770780632774,-500.0,0.00017995,2]
[405090155,1770780632791,-500.0,0.00017995,2]
[405090156,1770780632803,-500.0,0.00017995,2]
[405090157,1770780632813,-388.01321514,0.00017995,2]
[405090158,1770780632822,-500.0,0.00017995,2]
[405090159,1770780632832,-500.0,0.00017995,2]
[405090160,1770780632842,-500.0,0.00017995,2]
[405090161,1770780632851,-500.0,0.00017995,2]
[405090162,1770780632862,-500.0,0.00017995,2]
[405090163,1770780632872,-500.0,0.00017995,2]
[405090164,1770780632881,-500.0,0.00017995,2]
[405090165,1770780632891,-500.0,0.00017995,2]
[405090166,1770780632900,-500.0,0.00017995,2]
[405090167,1770780632910,-500.0,0.00017995,2]
[405090168,1770780632919,-500.0,0.00017995,2]
[405090169,1770780632929,-500.0,0.00017995,2]
[405090170,1770780632939,-500.0,0.00017995,2]
[405090171,1770780632949,-521.59178718,0.00017995,2]
[405090172,1770780632959,-525.0,0.00017995,2]
[405090173,1770780632969,-525.0,0.00017995,2]
[405090174,1770780632978,-525.0,0.00017995,2]
[405090175,1770780632988,-525.0,0.00017995,2]
[405090176,1770780632997,-525.0,0.00017995,2]
[405090177,1770780633007,-525.0,0.00017995,2]
[405090178,1770780633017,-525.0,0.00017995,2]
[405090179,1770780633026,-525.0,0.00017995,2]
[405090180,1770780633035,-24674.1813709,0.00017996,2]
[405090181,1770780633045,-118437.12143497,0.00017996,2]
[405090182,1770780633060,-1254.41808677,0.00017996,2]
[405090183,1770780633381,-543.4792702,0.00017996,2]
[405090184,1770780633405,-299.23478,0.00017996,2]
[405090185,1770780633417,-15868.63145007,0.00017996,2]
[405090186,1770780633435,-720.05,0.00017996,2]
[405090188,1770780633446,-1126.61412583,0.00017996,2]
[405090198,1770780638221,-500.0,0.00016199,2]
[405090199,1770780638236,-500.0,0.00016999,2]
[405090200,1770780638246,-500.0,0.00016999,2]
[405090201,1770780638256,-1436.5044634,0.00017677,2]
[405090219,1770780644353,-13.31181639,0.00017677,2]
[405090220,1770780644894,-311.54751749,0.00017677,2]
[405090221,1770780644904,-203.8727457,0.000179,2]
[405090222,1770780644913,-500.0,0.00017995,2]
[405090223,1770780644924,-500.0,0.00017995,2]
[405090224,1770780644933,-33757.37856028,0.00017996,2]
[405090225,1770780644943,-1043.8272,0.00017996,2]
[405090226,1770780644959,-13700.0,0.00017996,2]
[405090227,1770780645993,-1002.1425719,0.00017996,2]
[405090228,1770780646155,-422.365,0.00017996,2]
[405090230,1770780725044,278.687691,0.00035616,30]
[405090231,1770780727912,510.4095836,0.00035616,30]
[405090232,1770780728679,250.0,0.00035616,30]
[405090233,1770780729415,250.0,0.00035616,30]
[405090234,1770780730010,250.0,0.00035616,30]
[405090235,1770780730622,250.0,0.00035616,30]
[405090236,1770780731320,250.0,0.00035616,30]
[405090237,1770780732134,250.0,0.00035616,30]
[405090238,1770780732542,250.0,0.00035616,30]
[405090239,1770780733144,257.48942073,0.00035616,30]
[405090240,1770780753714,151.0,0.000345,31]
[405090241,1770780779094,154.471825,0.00035356,60]
[405090244,1770780838346,39700.26509165,0.00035616,30]
[405090247,1770781039179,500.0,0.00017,30]
[405090248,1770781039651,500.0,0.00017,30]
[405090249,1770781040132,710.056787,0.00015,30]
[405090250,1770781046295,700.0,0.00017,30]
[405090251,1770781050011,500.4,0.00017,30]
[405090252,1770781054097,528.94998728,0.00017,30]
[405090253,1770781056814,500.0,0.00017,30]
[405090254,1770781057295,503.04419548,0.00015,30]
[405090255,1770781057883,500.0,0.00017,30]
[405090256,1770781058366,503.62413284,0.00015,30]
[405090395,1770781832167,-166.66,0.00016939,2]
[405090396,1770781832177,-1729.64695405,0.00017193,2]
[405090397,1770781832222,-189.60831856,0.00017193,2]
[405090398,1770781832232,-3240.0,0.00017272,2]
[405090399,1770781832243,-166.66,0.00017296,2]
[405090400,1770781832252,-1852.42,0.00017376,2]
[405090401,1770781832263,-175.94,0.00017438,2]
[405090402,1770781832273,-50.16946155,0.00017489,2]
[405090403,1770781832288,-336.83053845,0.00017489,2]
[405090404,1770781832299,-10412.60702771,0.000176,2]
[405090405,1770781832310,-6832.10080246,0.000176,2]
[405090406,1770781832322,-293.65298846,0.000176,2]
[405090407,1770781832357,-1672.81804228,0.000176,2]
[405090408,1770781832370,-758.78,0.000176,2]
[405090409,1770781832382,-1887.52207154,0.000176,2]
[405090410,1770781832398,-865.07238644,0.000176,2]
[405090411,1770781832410,-4261.8712743,0.000176,2]
[405090412,1770781832436,-81232.0,0.000176,2]
[405090416,1770781838304,-4150.70316796,0.000176,2]
[405090417,1770781838358,-2253.09560657,0.000176,2]
[405090418,1770781838371,-16048.60233282,0.000176,2]
[405090419,1770781838439,-1300.6176767,0.000176,2]
[405090420,1770781838451,-2240.8741176,0.000176,2]
[405090421,1770781838488,-8150.2,0.000176,2]
[405090496,1770783031356,-3872.58,0.00014157,2]
[405090497,1770783031367,-250.0,0.00015,2]
[405090498,1770783031377,-204.46,0.00015,2]
[405090499,1770783031387,-250.0,0.00015572,2]
[405090500,1770783031397,-250.0,0.00015572,2]
[405090501,1770783031407,-368.79128323,0.00016438,2]
[405090502,1770783031417,-500.0,0.00016635,2]
[405090503,1770783031428,-1878.04,0.00016681,2]
[405090504,1770783031440,-1200.0,0.00016787,2]
[405090505,1770783031450,-2495.05,0.00016789,2]
[405090506,1770783031460,-150.0,0.00016798,2]
[405090507,1770783031469,-8881.74,0.0001698,2]
[405090508,1770783031479,-240.02,0.00017071,2]
[405090509,1770783031489,-500.0,0.0001712,2]
[405090510,1770783031499,-183.0,0.00017191,2]
[405090511,1770783031509,-150.0,0.00017192,2]
[405090512,1770783031518,-5347.89,0.00017192,2]
[405090513,1770783031528,-9999.99,0.00017192,2]
[405090514,1770783031537,-150.99,0.00017192,2]
[405090515,1770783031547,-200.0,0.00017231,2]
[405090516,1770783031557,-4405.98,0.00017231,2]
[405090517,1770783031568,-225.48317433,0.00017582,2]
[405090518,1770783031578,-153.4566854,0.000176,2]
[405090519,1770783031587,-2495.05,0.00017628,2]
[405090520,1770783031597,-1752.41347662,0.0001764,2]
[405090521,1770783031607,-166.66,0.00017653,2]
[405090522,1770783031616,-250.0,0.00017654,2]
[405090523,1770783031626,-2500.0,0.00017722,2]
[405090524,1770783031635,-324.6260487,0.00017722,2]
[405090525,1770783031645,-324.62604869,0.00017742,2]
[405090526,1770783031655,-324.62604869,0.00017762,2]
[405090527,1770783031665,-324.62604869,0.00017781,2]
[405090528,1770783031674,-1010.6773794,0.00017799,2]
[405090529,1770783031684,-9272.9138785,0.000178,3]
[405090530,1770783031693,-324.62604869,0.00017801,2]
[405090531,1770783031702,-324.62604869,0.00017821,2]
[405090532,1770783031712,-52351.273071,0.00017822,2]
[405090533,1770783031722,-31930.33691749,0.00017822,2]
[405090534,1770783031737,-1217.37507571,0.00017822,2]
[405090535,1770783031749,-3667.91083668,0.00017822,2]
[405090541,1770783037421,-728.72075651,0.00017822,2]
[405090542,1770783037433,-2132.28443699,0.00017822,2]
[405090557,1770783037858,-7735.11604352,0.00017822,2]
[405090559,1770783037869,-4879.358,0.00017822,2]
[405090561,1770783037880,-760.766732,0.00017822,2]
[405090565,1770783037906,-354.0347142,0.00017822,2]
[405090593,1770783039541,-346.68369335,0.00017822,2]
[405090594,1770783039859,-76087.50341735,0.00017822,2]
[405090595,1770783039868,-1337.1536594,0.00017822,2]
[405090596,1770783039879,-3205.9447153,0.00017822,2]
[405090597,1770783039889,-324.62604869,0.00017841,2]
[405090598,1770783039898,-324.62604869,0.0001786,2]
[405090599,1770783039908,-324.62604869,0.0001788,2]
[405090600,1770783039918,-1000.0,0.00017885,2]
[405090601,1770783039928,-570.3,0.00017894,2]
[405090602,1770783039937,-500.0,0.00017896,2]
[405090603,1770783039947,-500.0,0.00017896,2]
[405090604,1770783039961,-594.73002318,0.000179,2]
[405090605,1770783039970,-164.47452281,0.000179,2]
[405090606,1770783039980,-195.7198389,0.000179,2]
[405090607,1770783039989,-324.62604869,0.000179,2]
[405090608,1770783040002,-388.36042776,0.000179,2]
[405090610,1770783040012,-203.8727457,0.000179,2]
[405090612,1770783040021,-500.0,0.000179,2]
[405090614,1770783040032,-500.0,0.000179,2]
[405090615,1770783040041,-500.0,0.000179,2]
[405090617,1770783040051,-500.0,0.000179,2]
[405090619,1770783040060,-500.0,0.000179,2]
[405090620,1770783040070,-500.0,0.000179,2]
[405090621,1770783040079,-500.0,0.000179,2]
[405090622,1770783040088,-500.0,0.000179,2]
[405090623,1770783040097,-500.0,0.000179,2]
[405090624,1770783040107,-500.0,0.000179,2]
[405090625,1770783040116,-500.0,0.00017984,2]
[405090626,1770783040126,-312.0519413,0.00017984,2]
[405090627,1770783040135,-500.0,0.00017984,2]
[405090628,1770783040145,-181.1884548,0.00017984,2]
[405090629,1770783040154,-500.0,0.00017984,2]
[405090630,1770783040164,-500.0,0.00017984,2]
[405090631,1770783040173,-500.0,0.00017984,2]
[405090632,1770783040182,-500.0,0.00017984,2]
[405090633,1770783040192,-500.0,0.00017984,2]
[405090634,1770783040201,-500.0,0.00017984,2]
[405090635,1770783040211,-500.0,0.00017984,2]
[405090636,1770783040220,-500.0,0.00017984,2]
[405090637,1770783040229,-500.0,0.00017984,2]
[405090638,1770783040239,-500.0,0.00017984,2]
[405090639,1770783040248,-500.0,0.00017984,2]
[405090640,1770783040257,-500.0,0.00017984,2]
[405090641,1770783040267,-500.0,0.00017984,2]
[405090642,1770783040277,-500.0,0.00017984,2]
[405090643,1770783040286,-500.0,0.00017984,2]
[405090644,1770783040296,-500.0,0.00017984,2]
[405090645,1770783040305,-153.48277518,0.00017984,2]
[405090646,1770783040315,-500.0,0.00017984,2]
[405090647,1770783040325,-500.0,0.00017984,2]
[405090648,1770783040334,-500.0,0.00017984,2]
[405090649,1770783040344,-500.0,0.00017984,2]
[405090650,1770783040353,-500.0,0.00017984,2]
[405090651,1770783040362,-500.0,0.00017984,2]
[405090652,1770783040372,-188.27841096,0.0001799,2]
[405090653,1770783040381,-302.372,0.00017999,2]
[405090654,1770783040393,-500.0,0.00017999,2]
[405090655,1770783040402,-500.0,0.00017999,2]
[405090656,1770783040412,-500.0,0.00017999,2]
[405090657,1770783040421,-500.0,0.00017999,2]